fUSD/lending_fUSD_20250818
["ID","MTS","AMOUNT","RATE_DAILY","PERIOD"]
[380056649,1755514245388,-159.36,0.000137,2]
[380056650,1755514245398,-159.36792485,0.000137,2]
[380056651,1755514245408,-159.36792485,0.000137,2]
[380056652,1755514245417,-159.36792485,0.000137,2]
[380056653,1755514245427,-159.36792485,0.000137,2]
[380056654,1755514245436,-159.36792485,0.000137,2]
[380056655,1755514245446,-159.36792485,0.000137,2]
[380056656,1755514245456,-159.36,0.000137,2]
[380056657,1755514245466,-400.0,0.000137,2]
[380056658,1755514245475,-2462.60741056,0.000137,2]
[380056659,1755514245485,-2462.60741056,0.000137,2]
[380056660,1755514245495,-2462.60741056,0.000137,2]
[380056661,1755514245504,-2462.60741056,0.000137,2]
[380056662,1755514245514,-2462.60741056,0.000137,2]
[380056663,1755514245523,-2462.60741056,0.000137,2]
[380056664,1755514245532,-2462.60741056,0.000137,2]
[380056665,1755514245542,-2462.60741056,0.000137,2]
[380056666,1755514245551,-2462.60741056,0.000137,2]
[380056667,1755514245561,-2462.60741056,0.000137,2]
[380056668,1755514245571,-2462.60741056,0.000137,2]
[380056669,1755514245581,-2462.60741056,0.000137,2]
[380056670,1755514245590,-2462.60741056,0.000137,2]
[380056671,1755514245599,-2462.60741056,0.000137,2]
[380056672,1755514245609,-2462.60741056,0.000137,2]
[380056673,1755514245618,-2462.60741056,0.000137,2]
[380056674,1755514245628,-2462.60741056,0.000137,2]
[380056675,1755514245637,-2462.60741056,0.000137,2]
[380056676,1755514245647,-2462.60741056,0.000137,2]
[380056677,1755514245656,-2462.6,0.000137,2]
[380056678,1755514245666,-5746.08395797,0.000137,2]
[380056679,1755514245675,-5746.08395797,0.000137,2]
[380056680,1755514245685,-5746.08395797,0.000137,2]
[380056681,1755514245694,-5746.08395797,0.000137,2]
[380056682,1755514245703,-5746.08395797,0.000137,2]
[380056683,1755514245714,-5746.08395797,0.000137,2]
[380056684,1755514245723,-5746.08395797,0.000137,2]
[380056685,1755514245732,-5746.08395797,0.000137,2]
[380056686,1755514245741,-5746.08395797,0.000137,2]
[380056687,1755514245751,-5746.08395797,0.000137,2]
[380056688,1755514245760,-5746.08395797,0.000137,2]
[380056689,1755514245770,-5746.08395797,0.000137,2]
[380056690,1755514245780,-5746.08395797,0.000137,2]
[380056691,1755514245790,-5746.08395797,0.000137,2]
[380056692,1755514245799,-5746.08395797,0.000137,2]
[380056693,1755514245809,-5746.08395797,0.000137,2]
[380056694,1755514245818,-5746.08395797,0.000137,2]
[380056695,1755514245829,-5746.08395797,0.000137,2]
[380056696,1755514245838,-5746.08395797,0.000137,2]
[380056697,1755514245848,-5746.08,0.000137,2]
[380056698,1755514245863,-1000.0,0.000137,2]
[380056699,1755514245873,-419.51,0.000137,2]
[380056700,1755514245883,-419.51,0.000137,2]
[380056701,1755514245896,-419.51,0.000137,2]
[380056702,1755514245915,-419.51,0.000137,2]
[380056703,1755514245931,-419.51,0.000137,2]
[380056704,1755514245944,-11512.8,0.000137,2]
[380056705,1755514245957,-11512.8,0.000137,2]
[380056706,1755514245975,-150.0,0.00013703,2]
[380056707,1755514245987,-150.0,0.00013714,2]
[380056708,1755514245999,-150.0,0.00013724,2]
[380056709,1755514246010,-150.0,0.00013735,2]
[380056710,1755514246021,-150.0,0.00013741,2]
[380056711,1755514246031,-3292.0,0.00013741,2]
[380056712,1755514246043,-150.0,0.00013747,2]
[380056713,1755514246053,-162.71,0.00013765,2]
[380056714,1755514246063,-5633.0,0.0001377,2]
[380056715,1755514246075,-150.0,0.00013792,2]
[380056716,1755514246085,-150.0,0.00013792,2]
[380056717,1755514246094,-150.0,0.00013796,2]
[380056718,1755514246107,-150.0,0.00013798,2]
[380056719,1755514246117,-27604.59568983,0.000138,2]
[380056720,1755514246129,-150.0,0.00013802,2]
[380056721,1755514246138,-1077.89,0.00013803,2]
[380056722,1755514246147,-1000.0,0.00013804,2]
[380056734,1755514246322,-150.0,0.00013809,2]
[380056735,1755514246332,-3000.0,0.00013812,2]
[380056736,1755514246341,-2264.16347219,0.00013812,2]
[380056737,1755514246351,-3000.0,0.00013812,2]
[380056738,1755514246359,-3000.0,0.00013812,2]
[380056739,1755514246369,-150.0,0.00013818,2]
[380056740,1755514246378,-316.11593967,0.00013842,2]
[380056741,1755514246387,-1501.0,0.00013842,2]
[380056742,1755514246397,-420.0,0.00013842,2]
[380056743,1755514246405,-246.43321828,0.00013842,2]
[380056744,1755514246415,-482.0,0.00013842,2]
[380056745,1755514246424,-463.22651281,0.00013842,2]
[380056746,1755514246433,-500.0,0.00013842,2]
[380056747,1755514246442,-500.0,0.00013842,2]
[380056748,1755514246451,-423.0,0.00013842,2]
[380056749,1755514246461,-500.0,0.00013842,2]
[380056750,1755514246470,-175.14506424,0.00013842,2]
[380056751,1755514246479,-628.0,0.00013842,2]
[380056752,1755514246489,-793.0,0.00013842,2]
[380056753,1755514246499,-450.0,0.00013842,2]
[380056754,1755514246509,-3778.0,0.00013842,2]
[380056755,1755514246519,-1000.0,0.00013846,2]
[380056756,1755514246529,-150.0,0.00013861,2]
[380056757,1755514246538,-150.0,0.00013873,2]
[380056758,1755514246548,-150.0,0.0001388,2]
[380056759,1755514246557,-5633.0,0.00013884,2]
[380056760,1755514246566,-2000.0,0.00013899,2]
[380056761,1755514246576,-3329.75,0.000139,7]
[380056762,1755514246586,-5774.34,0.000139,7]
[380056763,1755514246594,-19670.61,0.000139,2]
[380056764,1755514246602,-150.0,0.00013901,2]
[380056765,1755514246609,-150.0,0.00013914,2]
[380056766,1755514246618,-331.88,0.00013924,2]
[380056768,1755514246626,-5633.0,0.00013939,2]
[380056770,1755514246635,-150.0,0.00013945,2]
[380056771,1755514246642,-652.37479559,0.00013949,10]
[380056772,1755514246652,-150.0,0.00013958,2]
[380056773,1755514246662,-500.0,0.0001397,2]
[380056774,1755514246671,-991.17675997,0.0001397,2]
[380056776,1755514246680,-1000.0,0.0001397,2]
[380056778,1755514246690,-1000.0,0.0001397,2]
[380056780,1755514246701,-1000.0,0.0001397,2]
[380056782,1755514246710,-1000.0,0.0001397,2]
[380056784,1755514246719,-500.0,0.0001397,2]
[380056786,1755514246729,-1000.0,0.0001397,2]
[380056788,1755514246739,-500.0,0.0001397,2]
[380056789,1755514246748,-477.0,0.00013973,2]
[380056790,1755514246757,-300.0,0.00013973,2]
[380056791,1755514246766,-150.0,0.00013986,2]
[380056792,1755514246775,-790.53215402,0.00013986,2]
[380056793,1755514246785,-1007.54098062,0.00013987,2]
[380056794,1755514246794,-1224.54980721,0.00013987,2]
[380056795,1755514246803,-1441.5586338,0.00013988,2]
[380056796,1755514246812,-1658.5674604,0.00013988,2]
[380056797,1755514246822,-1875.57628699,0.00013989,2]
[380056798,1755514246832,-2092.58511359,0.00013989,2]
[380056799,1755514246842,-2309.59394018,0.0001399,2]
[380056800,1755514246851,-2526.60276678,0.0001399,2]
[380056801,1755514246864,-150.0,0.00013994,2]
[380056802,1755514246874,-3329.75,0.00014,7]
[380056803,1755514246882,-3695.23,0.00014,2]
[380056804,1755514246891,-5774.34,0.00014,7]
[380056805,1755514246900,-6686.84297906,0.00014,2]
[380056806,1755514246910,-477.0,0.00014,2]
[380056807,1755514246920,-67315.16,0.00014,2]
[380056808,1755514246930,-1000.0,0.00014,2]
[380056809,1755514246941,-200.0,0.00014,2]
[380056810,1755514246950,-200.0,0.00014,10]
[380056811,1755514246959,-5633.0,0.00014015,2]
[380056812,1755514246968,-150.0,0.00014023,2]
[380056813,1755514246978,-5633.0,0.00014028,2]
[380056814,1755514246987,-150.0,0.00014029,2]
[380056815,1755514246996,-418.19913108,0.00014034,7]
[380056816,1755514247006,-150.0,0.00014038,2]
[380056817,1755514247016,-151.0,0.00014045,2]
[380056818,1755514247025,-1000.0,0.00014045,2]
[380056819,1755514247035,-234.30374499,0.00014054,2]
[380056820,1755514247044,-150.0,0.00014063,2]
[380056821,1755514247054,-200.0,0.00014064,7]
[380056822,1755514247064,-590.0,0.000141,2]
[380056823,1755514247074,-418738.21,0.000141,2]
[380056824,1755514247083,-3088.49303105,0.00014104,2]
[380056825,1755514247092,-1501.0,0.00014116,2]
[380056826,1755514247102,-420.0,0.00014116,2]
[380056827,1755514247111,-482.0,0.00014116,2]
[380056828,1755514247121,-500.0,0.00014116,2]
[380056829,1755514247133,-500.0,0.00014116,2]
[380056830,1755514247144,-423.0,0.00014116,2]
[380056831,1755514247153,-500.0,0.00014116,2]
[380056832,1755514247163,-628.0,0.00014116,2]
[380056833,1755514247173,-793.0,0.00014116,2]
[380056834,1755514247182,-450.0,0.00014116,2]
[380056835,1755514247191,-3778.0,0.00014116,2]
[380056836,1755514247201,-150.0,0.00014122,2]
[380056837,1755514247211,-150.0,0.00014135,2]
[380056838,1755514247221,-150.0,0.00014142,2]
[380056839,1755514247231,-150.0,0.00014143,2]
[380056840,1755514247240,-150.0,0.00014145,2]
[380056841,1755514247249,-150.0,0.00014145,2]
[380056842,1755514247258,-150.0,0.00014149,2]
[380056843,1755514247268,-1000.0,0.0001417,2]
[380056844,1755514247278,-150.0,0.00014172,2]
[380056845,1755514247287,-1152.83,0.00014182,2]
[380056846,1755514247298,-150.0,0.00014191,2]
[380056847,1755514247307,-1505.08950757,0.00014198,2]
[380056848,1755514247317,-150.0,0.00014198,2]
[380056849,1755514247326,-150.0,0.000142,2]
[380056850,1755514247336,-211.9,0.000142,2]
[380056851,1755514247346,-156.58,0.00014211,2]
[380056853,1755514247355,-150.0,0.00014239,2]
[380056854,1755514247364,-1000.0,0.00014247,2]
[380056856,1755514247374,-1000.0,0.00014247,2]
[380056857,1755514247383,-1000.0,0.00014247,2]
[380056858,1755514247392,-1004.88603016,0.00014247,2]
[380056859,1755514247401,-1000.0,0.00014247,2]
[380056860,1755514247411,-1000.0,0.00014247,2]
[380056861,1755514247420,-446.00703754,0.00014247,2]
[380056862,1755514247429,-160.06214813,0.00014247,2]
[380056863,1755514247438,-1000.0,0.00014247,2]
[380056864,1755514247448,-293.74764896,0.00014247,2]
[380056865,1755514247458,-1000.0,0.00014247,2]
[380056866,1755514247468,-1000.0,0.00014247,2]
[380056867,1755514247478,-1000.0,0.00014247,2]
[380056868,1755514247489,-1000.0,0.00014247,2]
[380056869,1755514247498,-1000.0,0.00014247,2]
[380056870,1755514247507,-1000.0,0.00014247,2]
[380056871,1755514247517,-252.68847802,0.00014247,2]
[380056872,1755514247527,-160.01205593,0.00014247,2]
[380056873,1755514247536,-1000.0,0.00014247,2]
[380056874,1755514247546,-1000.0,0.00014247,2]
[380056875,1755514247555,-1000.0,0.00014247,2]
[380056876,1755514247564,-546.54350252,0.00014247,2]
[380056877,1755514247575,-1000.0,0.00014247,2]
[380056878,1755514247585,-1000.0,0.00014247,2]
[380056879,1755514247594,-1000.0,0.00014247,2]
[380056880,1755514247603,-1000.0,0.00014247,2]
[380056881,1755514247613,-1000.0,0.00014247,2]
[380056882,1755514247622,-161.61909858,0.00014247,2]
[380056883,1755514247633,-1000.0,0.00014247,2]
[380056884,1755514247643,-531.74480632,0.00014247,2]
[380056885,1755514247653,-1000.0,0.00014247,2]
[380056886,1755514247662,-1000.0,0.00014247,2]
[380056887,1755514247672,-1000.0,0.00014247,2]
[380056888,1755514247681,-1000.0,0.00014247,2]
[380056889,1755514247691,-588.68234447,0.00014247,2]
[380056890,1755514247700,-1000.0,0.00014247,2]
[380056891,1755514247709,-413.73979446,0.00014247,2]
[380056892,1755514247720,-1000.0,0.00014247,2]
[380056893,1755514247730,-471.76307315,0.00014247,2]
[380056894,1755514247739,-1000.0,0.00014247,2]
[380056895,1755514247749,-1139.52211488,0.00014247,2]
[380056896,1755514247759,-247.06437807,0.00014247,2]
[380056897,1755514247768,-1000.0,0.00014247,2]
[380056898,1755514247777,-300.0,0.00014247,2]
[380056899,1755514247786,-150.0,0.0001425,2]
[380056900,1755514247796,-150.0,0.0001426,2]
[380056901,1755514247805,-150.0,0.00014261,2]
[380056902,1755514247814,-150.0,0.00014261,2]
[380056903,1755514247823,-150.0,0.00014269,2]
[380056904,1755514247833,-156.58,0.00014274,2]
[380056905,1755514247842,-162.71,0.00014292,2]
[380056906,1755514247852,-150.0,0.00014294,2]
[380056907,1755514247867,-150.0,0.00014294,2]
[380056908,1755514247877,-1000.0,0.000143,2]
[380056909,1755514247886,-150.0,0.00014313,2]
[380056910,1755514247896,-150.0,0.00014315,2]
[380056911,1755514247907,-151.0,0.00014316,2]
[380056912,1755514247917,-871.245682,0.00014316,2]
[380056913,1755514247927,-236.949657,0.00014316,2]
[380056914,1755514247936,-1871.237608,0.00014316,2]
[380056915,1755514247948,-871.245682,0.00014316,2]
[380056916,1755514247957,-151.0,0.00014316,2]
[380056917,1755514247967,-236.949657,0.00014316,2]
[380056918,1755514247977,-1871.237608,0.00014316,2]
[380056919,1755514247986,-688.215796,0.00014316,2]
[380056920,1755514247995,-345.647517,0.00014316,2]
[380056921,1755514248005,-151.0,0.00014316,2]
[380056922,1755514248016,-688.215796,0.00014316,2]
[380056923,1755514248026,-345.647517,0.00014316,2]
[380056924,1755514248036,-151.0,0.00014316,2]
[380056925,1755514248047,-402.280391,0.00014316,2]
[380056926,1755514248056,-563.779222,0.00014316,2]
[380056927,1755514248066,-402.280391,0.00014316,2]
[380056928,1755514248076,-563.779222,0.00014316,2]
[380056929,1755514248088,-1205.683637,0.00014316,2]
[380056930,1755514248097,-265.107177,0.00014316,2]
[380056931,1755514248107,-1205.683637,0.00014316,2]
[380056932,1755514248117,-151.0,0.00014316,2]
[380056933,1755514248127,-265.107177,0.00014316,2]
[380056934,1755514248137,-151.0,0.00014316,2]
[380056935,1755514248146,-151.0,0.00014316,2]
[380056936,1755514248156,-151.0,0.00014316,2]
[380056937,1755514248166,-1163.41998,0.00014316,2]
[380056938,1755514248175,-151.0,0.00014316,2]
[380056939,1755514248185,-151.0,0.00014316,2]
[380056940,1755514248195,-1163.41998,0.00014316,2]
[380056941,1755514248205,-151.0,0.00014316,2]
[380056942,1755514248215,-151.0,0.00014316,2]
[380056943,1755514248225,-1323.177849,0.00014316,2]
[380056944,1755514248235,-151.0,0.00014316,2]
[380056945,1755514248245,-151.0,0.00014316,2]
[380056946,1755514248255,-1323.177849,0.00014316,2]
[380056947,1755514248265,-567.473255,0.00014316,2]
[380056948,1755514248274,-151.0,0.00014316,2]
[380056949,1755514248284,-741.578897,0.00014316,2]
[380056950,1755514248294,-567.473255,0.00014316,2]
[380056951,1755514248304,-151.0,0.00014316,2]
[380056952,1755514248313,-460.169777,0.00014316,2]
[380056953,1755514248323,-151.0,0.00014316,2]
[380056954,1755514248333,-151.0,0.00014316,2]
[380056955,1755514248342,-741.578897,0.00014316,2]
[380056956,1755514248352,-151.0,0.00014316,2]
[380056957,1755514248361,-460.169777,0.00014316,2]
[380056958,1755514248371,-151.0,0.00014316,2]
[380056959,1755514248380,-336.937116,0.00014316,2]
[380056960,1755514248390,-1180.835413,0.00014316,2]
[380056961,1755514248408,-397.931282,0.00014316,2]
[380056962,1755514248419,-277.684031,0.00014316,2]
[380056963,1755514248431,-321.396743,0.00014316,2]
[380056964,1755514248442,-336.937116,0.00014316,2]
[380056965,1755514248451,-1180.835413,0.00014316,2]
[380056966,1755514248461,-321.396743,0.00014316,2]
[380056967,1755514248471,-166.567427,0.00014316,2]
[380056968,1755514248480,-277.684031,0.00014316,2]
[380056969,1755514248489,-166.567427,0.00014316,2]
[380056970,1755514248498,-397.931282,0.00014316,2]
[380056971,1755514248508,-151.0,0.00014316,2]
[380056972,1755514248517,-229.75238,0.00014316,2]
[380056973,1755514248526,-151.0,0.00014316,2]
[380056974,1755514248536,-151.0,0.00014316,2]
[380056975,1755514248545,-151.0,0.00014316,2]
[380056976,1755514248555,-229.75238,0.00014316,2]
[380056977,1755514248564,-294.313829,0.00014316,2]
[380056978,1755514248573,-643.409651,0.00014316,2]
[380056979,1755514248583,-294.313829,0.00014316,2]
[380056980,1755514248591,-643.409651,0.00014316,2]
[380056981,1755514248601,-335.265736,0.00014316,2]
[380056982,1755514248610,-151.0,0.00014316,2]
[380056983,1755514248619,-335.265736,0.00014316,2]
[380056984,1755514248629,-151.0,0.00014316,2]
[380056985,1755514248638,-636.257703,0.00014316,2]
[380056986,1755514248647,-12000.0,0.00014316,2]
[380056987,1755514248657,-2430.921277,0.00014316,2]
[380056988,1755514248666,-636.257703,0.00014316,2]
[380056989,1755514248675,-12000.0,0.00014316,2]
[380056990,1755514248684,-2430.921277,0.00014316,2]
[380056991,1755514248693,-203.017944,0.00014316,2]
[380056992,1755514248703,-296.822585,0.00014316,2]
[380056993,1755514248712,-153.349604,0.00014316,2]
[380056994,1755514248721,-12000.0,0.00014316,2]
[380056995,1755514248730,-296.822585,0.00014316,2]
[380056996,1755514248739,-153.349604,0.00014316,2]
[380056997,1755514248748,-258.785962,0.00014316,2]
[380056998,1755514248757,-2984.730515,0.00014316,2]
[380056999,1755514248766,-12000.0,0.00014316,2]
[380057000,1755514248775,-235.553641,0.00014316,2]
[380057001,1755514248786,-258.785962,0.00014316,2]
[380057002,1755514248795,-2984.730515,0.00014316,2]
[380057003,1755514248804,-563.60212,0.00014316,2]
[380057004,1755514248813,-235.553641,0.00014316,2]
[380057005,1755514248822,-563.60212,0.00014316,2]
[380057006,1755514248831,-203.017944,0.00014316,2]
[380057007,1755514248840,-151.0,0.00014316,2]
[380057008,1755514248850,-215.64482,0.00014316,2]
[380057009,1755514248863,-215.64482,0.00014316,2]
[380057010,1755514248873,-2727.610331,0.00014316,2]
[380057011,1755514248882,-2727.610331,0.00014316,2]
[380057012,1755514248892,-352.991032,0.00014316,2]
[380057013,1755514248901,-4579.32855,0.00014316,2]
[380057014,1755514248910,-352.991032,0.00014316,2]
[380057015,1755514248920,-4579.32855,0.00014316,2]
[380057016,1755514248929,-1481.500996,0.00014316,2]
[380057017,1755514248942,-1481.500996,0.00014316,2]
[380057018,1755514248952,-41756.8597117,0.00014317,2]
[380057019,1755514248962,-150.0,0.00014324,2]
[380057020,1755514248971,-150.0,0.00014325,2]
[380057021,1755514248980,-150.0,0.00014328,2]
[380057022,1755514248990,-150.0,0.00014328,2]
[380057023,1755514248999,-162.71,0.00014336,2]
[380057024,1755514249009,-150.0,0.00014343,2]
[380057025,1755514249018,-150.0,0.00014344,2]
[380057026,1755514249027,-736.0,0.00014354,2]
[380057027,1755514249036,-1000.0,0.00014359,2]
[380057028,1755514249046,-3500.0,0.0001436,2]
[380057029,1755514249056,-3500.0,0.0001436,2]
[380057030,1755514249066,-2500.0,0.0001436,2]
[380057031,1755514249075,-150.0,0.00014362,2]
[380057032,1755514249084,-1000.0,0.00014368,2]
[380057033,1755514249094,-150.0,0.00014369,2]
[380057034,1755514249103,-150.0,0.0001437,2]
[380057035,1755514249112,-150.0,0.00014371,2]
[380057036,1755514249122,-150.0,0.00014381,2]
[380057037,1755514249131,-677.27,0.00014381,2]
[380057038,1755514249140,-477.0,0.00014384,2]
[380057039,1755514249150,-4543.4,0.00014384,2]
[380057040,1755514249160,-178.811782,0.00014384,2]
[380057041,1755514249170,-196.50168,0.00014384,2]
[380057042,1755514249180,-178.811782,0.00014384,2]
[380057043,1755514249190,-196.50168,0.00014384,2]
[380057044,1755514249200,-151.0,0.00014384,2]
[380057045,1755514249211,-151.0,0.00014384,2]
[380057046,1755514249221,-316.452968,0.00014384,2]
[380057047,1755514249231,-316.452968,0.00014384,2]
[380057048,1755514249240,-242.227243,0.00014384,2]
[380057049,1755514249250,-151.0,0.00014384,2]
[380057050,1755514249260,-242.227243,0.00014384,2]
[380057051,1755514249269,-151.0,0.00014384,2]
[380057052,1755514249279,-152.308589,0.00014384,2]
[380057053,1755514249289,-151.0,0.00014384,2]
[380057054,1755514249299,-409.800486,0.00014384,2]
[380057055,1755514249309,-151.0,0.00014384,2]
[380057056,1755514249318,-409.800486,0.00014384,2]
[380057057,1755514249329,-256.216712,0.00014384,2]
[380057058,1755514249339,-256.216712,0.00014384,2]
[380057059,1755514249348,-461.869756,0.00014384,2]
[380057060,1755514249359,-188.171543,0.00014384,2]
[380057061,1755514249369,-188.171543,0.00014384,2]
[380057062,1755514249379,-461.869756,0.00014384,2]
[380057063,1755514249388,-151.0,0.00014384,2]
[380057064,1755514249398,-151.0,0.00014384,2]
[380057065,1755514249408,-197.060033,0.00014384,2]
[380057066,1755514249418,-426.924896,0.00014384,2]
[380057067,1755514249427,-426.924896,0.00014384,2]
[380057068,1755514249437,-181.37729,0.00014384,2]
[380057069,1755514249446,-181.37729,0.00014384,2]
[380057070,1755514249456,-151.0,0.00014384,2]
[380057071,1755514249465,-151.0,0.00014384,2]
[380057072,1755514249474,-151.0,0.00014384,2]
[380057073,1755514249483,-151.0,0.00014384,2]
[380057074,1755514249493,-151.0,0.00014384,2]
[380057075,1755514249502,-151.0,0.00014384,2]
[380057076,1755514249511,-151.0,0.00014384,2]
[380057077,1755514249521,-155.377265,0.00014384,2]
[380057078,1755514249531,-151.0,0.00014384,2]
[380057079,1755514249541,-323.524855,0.00014384,2]
[380057080,1755514249551,-323.524855,0.00014384,2]
[380057081,1755514249560,-151.0,0.00014384,2]
[380057082,1755514249570,-770.755096,0.00014384,2]
[380057083,1755514249580,-770.755096,0.00014384,2]
[380057084,1755514249590,-718.661169,0.00014384,2]
[380057085,1755514249599,-256.335759,0.00014384,2]
[380057086,1755514249609,-151.0,0.00014384,2]
[380057087,1755514249618,-256.335759,0.00014384,2]
[380057088,1755514249628,-151.0,0.00014384,2]
[380057089,1755514249637,-151.0,0.00014384,2]
[380057090,1755514249646,-151.83878,0.00014384,2]
[380057091,1755514249655,-543.648008,0.00014384,2]
[380057092,1755514249665,-151.702986,0.00014384,2]
[380057093,1755514249674,-543.648008,0.00014384,2]
[380057094,1755514249683,-151.702986,0.00014384,2]
[380057095,1755514249692,-151.0,0.00014384,2]
[380057096,1755514249702,-151.0,0.00014384,2]
[380057097,1755514249711,-155.377265,0.00014384,2]
[380057098,1755514249721,-151.0,0.00014384,2]
[380057099,1755514249730,-151.0,0.00014384,2]
[380057100,1755514249739,-234.177967,0.00014384,2]
[380057101,1755514249749,-234.177967,0.00014384,2]
[380057102,1755514249757,-151.0,0.00014384,2]
[380057103,1755514249767,-151.0,0.00014384,2]
[380057104,1755514249776,-315.152936,0.00014384,2]
[380057105,1755514249785,-151.0,0.00014384,2]
[380057106,1755514249795,-1065.974726,0.00014384,2]
[380057107,1755514249804,-1065.974726,0.00014384,2]
[380057108,1755514249813,-315.152936,0.00014384,2]
[380057109,1755514249822,-151.0,0.00014384,2]
[380057110,1755514249832,-151.0,0.00014384,2]
[380057111,1755514249841,-351.106166,0.00014384,2]
[380057112,1755514249850,-240.817264,0.00014384,2]
[380057113,1755514249862,-151.0,0.00014384,2]
[380057114,1755514249872,-162.257064,0.00014384,2]
[380057115,1755514249881,-351.106166,0.00014384,2]
[380057116,1755514249891,-240.817264,0.00014384,2]
[380057117,1755514249901,-162.257064,0.00014384,2]
[380057118,1755514249910,-151.0,0.00014384,2]
[380057119,1755514249919,-159.803931,0.00014384,2]
[380057120,1755514249929,-807.62921,0.00014384,2]
[380057121,1755514249940,-1551.986489,0.00014384,2]
[380057122,1755514249949,-807.62921,0.00014384,2]
[380057123,1755514249959,-151.0,0.00014384,2]
[380057124,1755514249968,-1551.986489,0.00014384,2]
[380057125,1755514249978,-694.137435,0.00014384,2]
[380057126,1755514249987,-151.0,0.00014384,2]
[380057127,1755514249997,-694.137435,0.00014384,2]
[380057128,1755514250007,-197.312644,0.00014384,2]
[380057129,1755514250016,-361.588702,0.00014384,2]
[380057130,1755514250025,-197.312644,0.00014384,2]
[380057131,1755514250034,-361.588702,0.00014384,2]
[380057132,1755514250043,-151.0,0.00014384,2]
[380057133,1755514250052,-329.556408,0.00014384,2]
[380057134,1755514250061,-194.812831,0.00014384,2]
[380057135,1755514250071,-329.556408,0.00014384,2]
[380057136,1755514250080,-220.705094,0.00014384,2]
[380057137,1755514250089,-194.812831,0.00014384,2]
[380057138,1755514250098,-220.705094,0.00014384,2]
[380057139,1755514250107,-416.895901,0.00014384,2]
[380057140,1755514250117,-151.0,0.00014384,2]
[380057141,1755514250127,-1095.593778,0.00014384,2]
[380057142,1755514250137,-416.895901,0.00014384,2]
[380057143,1755514250146,-151.0,0.00014384,2]
[380057144,1755514250155,-1095.593778,0.00014384,2]
[380057145,1755514250165,-210.397056,0.00014384,2]
[380057146,1755514250175,-437.664017,0.00014384,2]
[380057147,1755514250184,-210.397056,0.00014384,2]
[380057148,1755514250194,-182.879958,0.00014384,2]
[380057149,1755514250204,-182.879958,0.00014384,2]
[380057150,1755514250214,-151.0,0.00014384,2]
[380057151,1755514250224,-1154.333538,0.00014384,2]
[380057152,1755514250234,-1154.333538,0.00014384,2]
[380057153,1755514250244,-156.219726,0.00014384,2]
[380057154,1755514250254,-562.560002,0.00014384,2]
[380057155,1755514250264,-151.0,0.00014384,2]
[380057156,1755514250274,-562.560002,0.00014384,2]
[380057157,1755514250284,-151.0,0.00014384,2]
[380057158,1755514250294,-607.266796,0.00014384,2]
[380057159,1755514250303,-339.936249,0.00014384,2]
[380057160,1755514250314,-607.266796,0.00014384,2]
[380057161,1755514250324,-151.0,0.00014384,2]
[380057162,1755514250334,-339.936249,0.00014384,2]
[380057163,1755514250344,-151.0,0.00014384,2]
[380057164,1755514250353,-600.708925,0.00014384,2]
[380057165,1755514250363,-151.0,0.00014384,2]
[380057166,1755514250373,-600.708925,0.00014384,2]
[380057167,1755514250383,-166.401422,0.00014384,2]
[380057168,1755514250393,-166.401422,0.00014384,2]
[380057169,1755514250404,-258.648129,0.00014384,2]
[380057170,1755514250413,-258.648129,0.00014384,2]